Workbook

Sheet Advance_curve
A1: 13/04/2015 | C1: Version 16F628A v6.7 | G1: C1 | M1: =B9 -> 23
M2: =B244 ->  | V2: =B9 -> 23
D3: 3 ò | F3: 1 ò | I3: 5 ò | M3: =I5*1000 -> 14 | V3: =255-B9 -> 232
D4: prescaler | F4: pickup position | I4: Step | M4: =F5 -> 20 | V4: =D5 -> 256
D5: 256 | F5: 20 | G5: degrees BTDC | I5: 0.014 | J5: ms | V5: =I5*100 -> 1.4
V6: =advance_at_lowRPM!I2 -> 4
E7: 4 ò | H7: =IF(ISERROR(H9),"Load DECHEX macro","") ->  | I7: =IF(ISERROR(I9),"Load DEC2HEX macro","") ->  | J7: =IF(ISERROR(J9),"Load DEC.TILL.HEX macro","") ->  | K7: =IF(ISERROR(K9),"Load DEC.N.HEX macro","") ->  | V7: =advance_at_lowRPM!K2 -> 0
B8: TMR0 count | C8: RPM | D8: time for 1° (µs) | E8: Advance (degrees) | F8: Delay to add (ms) | G8: Delay to add (µs) | H8: Values for the map (DECHEX macro) | I8: Values for the map (DEC2HEX macro) | J8: Values for the map (DEC.TILL.HEX macro) | K8: Values for the map (DEC.N.HEX macro) | M8: Read about Dechex, Dec2hex Dec.til.hex, Dec.n.hex
A9: 2 ð | B9: 23 | C9: =120/(($D$5*B9/1000000)*2) -> 10190.21739 | D9: =(1000000/(C9/60))/360 -> 16.35555556 | E9: 20 | F9: =(D9*($F$5-E9))/1000 -> 0 | G9: =D9*($F$5-E9) -> 0 | H9: =IF($F9/$I$5>255," retlw 0xFF",IF($F9>0.01,CONCATENATE(" retlw 0x",DEC2HEX(INT($F9/$I$5),2),)," retlw 0x01")) -> retlw 0x01 | I9: =IF($F9/$I$5>255," retlw 0xFF",IF($F9>0.01,CONCATENATE(" retlw 0x",_xludf.DEC2HEX(INT($F9/$I$5),2),)," retlw 0x01")) -> retlw 0x01 | J9: =IF($F9/$I$5>255," retlw 0xFF",IF($F9>0.01,CONCATENATE(" retlw 0x",DEC.TILL.HEX(INT($F9/$I$5),2),)," retlw 0x01")) -> retlw 0x01 | K9: =IF($F9/$I$5>255," retlw 0xFF",IF($F9>0.01,CONCATENATE(" retlw 0x",DEC.N.HEX(INT($F9/$I$5),2),)," retlw 0x01")) -> retlw 0x01 | L9: =IF($F9/$I$5>255," Out of range! (change Step in cell H5 ?)","") ->  | Y9: =CONCATENATE(H9," ;",ROUND(C9,0),"rpm | ",ROUND(E9,1),"° | ",,ROUND(F9,2),"ms ") -> retlw 0x01 ;10190rpm | 20° | 0ms
B10: =IF((B9+1)<(255),B9+1,"- End -") -> 24 | C10: 9765.625 | D10: =(1000000/(C10/60))/360 -> 17.06666667 | E10: 20 | F10: 0 | G10: =D10*($F$5-E10) -> 0 | H10: retlw 0x01 | I10: retlw 0x01 | J10: retlw 0x01 | K10: retlw 0x01 | L10: =IF($F10/$I$5>255," Out of range! (change Step in cell H5 ?)","") ->  | V10: ligne=240,5 - 5,96deg | Y10: retlw 0x01 ;9766rpm | 20° | 0ms
B11: =IF((B10+1)<(255),B10+1,"- End -") -> 25 | C11: 9375 | D11: 17.77777778 | E11: 20 | F11: 0 | G11: 0 | H11: retlw 0x01 | I11: retlw 0x01 | J11: retlw 0x01 | K11: retlw 0x01 | V11: degree=40,36-0,168line | Y11: retlw 0x01 ;9375rpm | 20° | 0ms
B12: 26 | C12: 9014.423077 | D12: 18.48888889 | E12: 20 | F12: 0 | G12: 0 | H12: retlw 0x01 | I12: retlw 0x01 | J12: retlw 0x01 | K12: retlw 0x01 | Y12: retlw 0x01 ;9014rpm | 20° | 0ms
B13: 27 | C13: 8680.555556 | D13: 19.2 | E13: 20 | F13: 0 | G13: 0 | H13: retlw 0x01 | I13: retlw 0x01 | J13: retlw 0x01 | K13: retlw 0x01 | V13: RETLW | Y13: retlw 0x01 ;8681rpm | 20° | 0ms
B14: 28 | C14: 8370.535714 | D14: 19.91111111 | E14: 20 | F14: 0 | G14: 0 | H14: retlw 0x01 | I14: retlw 0x01 | J14: retlw 0x01 | K14: retlw 0x01 | V14: =CONCATENATE(I10,I11,I12,I13,I14,I15,I16,I17,I18,I19) ->  | Y14: retlw 0x01 ;8371rpm | 20° | 0ms
B15: 29 | C15: 8081.896552 | D15: 20.62222222 | E15: 20 | F15: 0 | G15: 0 | H15: retlw 0x01 | I15: retlw 0x01 | J15: retlw 0x01 | K15: retlw 0x01 | Y15: retlw 0x01 ;8082rpm | 20° | 0ms
B16: 30 | C16: 7812.5 | D16: 21.33333333 | E16: 19.9 | F16: 0.002133333333 | G16: 2.133333333 | H16: retlw 0x01 | I16: retlw 0x01 | J16: retlw 0x01 | K16: retlw 0x01 | Y16: retlw 0x01 ;7813rpm | 19,9° | 0ms
B17: 31 | C17: 7560.483871 | D17: 22.04444444 | E17: 19.7 | F17: 0.006613333333 | G17: 6.613333333 | H17: retlw 0x01 | I17: retlw 0x01 | J17: retlw 0x01 | K17: retlw 0x01 | V17: 128 | Y17: retlw 0x01 ;7560rpm | 19,7° | 0,01ms
B18: 32 | C18: 7324.21875 | D18: 22.75555556 | E18: 19.5 | F18: 0.01137777778 | G18: 11.37777778 | H18: retlw 0x00 | V18: 256 | Y18: retlw 0x00 ;7324rpm | 19,5° | 0,01ms
B19: 33 | C19: 7102.272727 | D19: 23.46666667 | E19: 19.3 | F19: 0.01642666667 | G19: 16.42666667 | H19: retlw 0x01 | Y19: retlw 0x01 ;7102rpm | 19,3° | 0,02ms
B20: 34 | C20: 6893.382353 | D20: 24.17777778 | E20: 19.1 | F20: 0.02176 | G20: 21.76 | H20: retlw 0x01 | V20: 0.004 | Y20: retlw 0x01 ;6893rpm | 19,1° | 0,02ms
B21: 35 | C21: 6696.428571 | D21: 24.88888889 | E21: 18.9 | F21: 0.02737777778 | G21: 27.37777778 | H21: retlw 0x01 | V21: 0.005 | Y21: retlw 0x01 ;6696rpm | 18,9° | 0,03ms
B22: 36 | C22: 6510.416667 | D22: 25.6 | E22: 18.7 | F22: 0.03328 | G22: 33.28 | H22: retlw 0x02 | V22: 0.006 | Y22: retlw 0x02 ;6510rpm | 18,7° | 0,03ms
B23: 37 | C23: 6334.459459 | D23: 26.31111111 | E23: 18.5 | F23: 0.03946666667 | G23: 39.46666667 | H23: retlw 0x02 | V23: 0.007 | Y23: retlw 0x02 ;6334rpm | 18,5° | 0,04ms
B24: 38 | C24: 6167.763158 | D24: 27.02222222 | E24: 18.3 | F24: 0.04593777778 | G24: 45.93777778 | H24: retlw 0x03 | V24: 0.008 | Y24: retlw 0x03 ;6168rpm | 18,3° | 0,05ms
B25: 39 | C25: 6009.615385 | D25: 27.73333333 | E25: 18.1 | F25: 0.05269333333 | G25: 52.69333333 | H25: retlw 0x03 | V25: 0.009 | Y25: retlw 0x03 ;6010rpm | 18,1° | 0,05ms
B26: 40 | C26: 5859.375 | D26: 28.44444444 | E26: 17.9 | F26: 0.05973333333 | G26: 59.73333333 | H26: retlw 0x04 | V26: 0.01 | Y26: retlw 0x04 ;5859rpm | 17,9° | 0,06ms
B27: 41 | C27: 5716.463415 | D27: 29.15555556 | E27: 17.7 | F27: 0.06705777778 | G27: 67.05777778 | H27: retlw 0x04 | V27: 0.011 | Y27: retlw 0x04 ;5716rpm | 17,7° | 0,07ms
B28: 42 | C28: 5580.357143 | D28: 29.86666667 | E28: 17.5 | F28: 0.07466666667 | G28: 74.66666667 | H28: retlw 0x05 | V28: 0.012 | Y28: retlw 0x05 ;5580rpm | 17,5° | 0,07ms
B29: 43 | C29: 5450.581395 | D29: 30.57777778 | E29: 17.3 | F29: 0.08256 | G29: 82.56 | H29: retlw 0x05 | V29: 0.013 | Y29: retlw 0x05 ;5451rpm | 17,3° | 0,08ms
B30: 44 | C30: 5326.704545 | D30: 31.28888889 | E30: 17.1 | F30: 0.09073777778 | G30: 90.73777778 | H30: retlw 0x06 | V30: 0.014 | Y30: retlw 0x06 ;5327rpm | 17,1° | 0,09ms
B31: 45 | C31: 5208.333333 | D31: 32 | E31: 16.9 | F31: 0.0992 | G31: 99.2 | H31: retlw 0x07 | V31: 0.015 | Y31: retlw 0x07 ;5208rpm | 16,9° | 0,1ms
B32: 46 | C32: 5095.108696 | D32: 32.71111111 | E32: 16.7 | F32: 0.1079466667 | G32: 107.9466667 | H32: retlw 0x07 | V32: 0.016 | Y32: retlw 0x07 ;5095rpm | 16,7° | 0,11ms
B33: 47 | C33: 4986.702128 | D33: 33.42222222 | E33: 16.5 | F33: 0.1169777778 | G33: 116.9777778 | H33: retlw 0x08 | V33: 0.017 | Y33: retlw 0x08 ;4987rpm | 16,5° | 0,12ms
B34: 48 | C34: 4882.8125 | D34: 34.13333333 | E34: 16.3 | F34: 0.1262933333 | G34: 126.2933333 | H34: retlw 0x09 | V34: 0.018 | Y34: retlw 0x09 ;4883rpm | 16,3° | 0,13ms
B35: 49 | C35: 4783.163265 | D35: 34.84444444 | E35: 16.1 | F35: 0.1358933333 | G35: 135.8933333 | H35: retlw 0x09 | V35: 0.019 | Y35: retlw 0x09 ;4783rpm | 16,1° | 0,14ms
B36: 50 | C36: 4687.5 | D36: 35.55555556 | E36: 15.9 | F36: 0.1457777778 | G36: 145.7777778 | H36: retlw 0x0A | V36: 0.02 | Y36: retlw 0x0A ;4688rpm | 15,9° | 0,15ms
B37: 51 | C37: 4595.588235 | D37: 36.26666667 | E37: 15.7 | F37: 0.1559466667 | G37: 155.9466667 | H37: retlw 0x0B | Y37: retlw 0x0B ;4596rpm | 15,7° | 0,16ms
B38: 52 | C38: 4507.211538 | D38: 36.97777778 | E38: 15.5 | F38: 0.1664 | G38: 166.4 | H38: retlw 0x0B | Y38: retlw 0x0B ;4507rpm | 15,5° | 0,17ms
B39: 53 | C39: 4422.169811 | D39: 37.68888889 | E39: 15.3 | F39: 0.1771377778 | G39: 177.1377778 | H39: retlw 0x0C | Y39: retlw 0x0C ;4422rpm | 15,3° | 0,18ms
B40: 54 | C40: 4340.277778 | D40: 38.4 | E40: 15.1 | F40: 0.18816 | G40: 188.16 | H40: retlw 0x0D | Y40: retlw 0x0D ;4340rpm | 15,1° | 0,19ms
B41: 55 | C41: =120/(($D$5*B41/1000000)*2) -> 4261.363636 | D41: 39.11111111 | E41: 14.9 | F41: 0.1994666667 | G41: 199.4666667 | H41: retlw 0x0E | Y41: retlw 0x0E ;4261rpm | 14,9° | 0,2ms
B42: 56 | C42: 4185.267857 | D42: 39.82222222 | E42: 14.7 | F42: 0.2110577778 | G42: 211.0577778 | H42: retlw 0x0F | Y42: retlw 0x0F ;4185rpm | 14,7° | 0,21ms
B43: 57 | C43: 4111.842105 | D43: 40.53333333 | E43: 14.5 | F43: 0.2229333333 | G43: 222.9333333 | H43: retlw 0x0F | V43: 10 | Y43: retlw 0x0F ;4112rpm | 14,5° | 0,22ms
B44: 58 | C44: 4040.948276 | D44: 41.24444444 | E44: 14.3 | F44: 0.2350933333 | G44: 235.0933333 | H44: retlw 0x10 | V44: 11 | Y44: retlw 0x10 ;4041rpm | 14,3° | 0,24ms
B45: 59 | C45: 3972.457627 | D45: 41.95555556 | E45: 14.1 | F45: 0.2475377778 | G45: 247.5377778 | H45: retlw 0x11 | V45: 12 | Y45: retlw 0x11 ;3972rpm | 14,1° | 0,25ms
B46: 60 | C46: 3906.25 | D46: 42.66666667 | E46: 13.9 | F46: 0.2602666667 | G46: 260.2666667 | H46: retlw 0x12 | V46: 13 | Y46: retlw 0x12 ;3906rpm | 13,9° | 0,26ms
B47: 61 | C47: 3842.213115 | D47: 43.37777778 | E47: 13.7 | F47: 0.27328 | G47: 273.28 | H47: retlw 0x13 | V47: 14 | Y47: retlw 0x13 ;3842rpm | 13,7° | 0,27ms
B48: 62 | C48: 3780.241935 | D48: 44.08888889 | E48: 13.5 | F48: 0.2865777778 | G48: 286.5777778 | H48: retlw 0x14 | V48: 15 | Y48: retlw 0x14 ;3780rpm | 13,5° | 0,29ms
B49: 63 | C49: 3720.238095 | D49: 44.8 | E49: 13.3 | F49: 0.30016 | G49: 300.16 | H49: retlw 0x15 | V49: 16 | Y49: retlw 0x15 ;3720rpm | 13,3° | 0,3ms
B50: 64 | C50: 3662.109375 | D50: 45.51111111 | E50: 13.1 | F50: 0.3140266667 | G50: 314.0266667 | H50: retlw 0x16 | V50: 17 | Y50: retlw 0x16 ;3662rpm | 13,1° | 0,31ms
B51: 65 | C51: 3605.769231 | D51: 46.22222222 | E51: 12.9 | F51: 0.3281777778 | G51: 328.1777778 | H51: retlw 0x17 | V51: 18 | Y51: retlw 0x17 ;3606rpm | 12,9° | 0,33ms
B52: 66 | C52: 3551.136364 | D52: 46.93333333 | E52: 12.54 | F52: 0.3501226667 | G52: 350.1226667 | H52: retlw 0x19 | V52: 19 | Y52: retlw 0x19 ;3551rpm | 12,5° | 0,35ms
B53: 67 | C53: 3498.134328 | D53: 47.64444444 | E53: 12.17 | F53: 0.373056 | G53: 373.056 | H53: retlw 0x1A | V53: 20 | Y53: retlw 0x1A ;3498rpm | 12,2° | 0,37ms
B54: 68 | C54: 3446.691176 | D54: 48.35555556 | E54: 11.8 | F54: 0.3965155556 | G54: 396.5155556 | H54: retlw 0x1C | V54: 21 | Y54: retlw 0x1C ;3447rpm | 11,8° | 0,4ms
B55: 69 | C55: 3396.73913 | D55: 49.06666667 | E55: 11.43 | F55: 0.4205013333 | G55: 420.5013333 | H55: retlw 0x1E | V55: 22 | Y55: retlw 0x1E ;3397rpm | 11,4° | 0,42ms
B56: 70 | C56: 3348.214286 | D56: 49.77777778 | E56: 11.06 | F56: 0.4450133333 | G56: 445.0133333 | H56: retlw 0x1F | V56: 23 | Y56: retlw 0x1F ;3348rpm | 11,1° | 0,45ms
B57: 71 | C57: 3301.056338 | D57: 50.48888889 | E57: 10.69 | F57: 0.4700515556 | G57: 470.0515556 | H57: retlw 0x21 | V57: 24 | Y57: retlw 0x21 ;3301rpm | 10,7° | 0,47ms
B58: 72 | C58: 3255.208333 | D58: 51.2 | E58: 10.32 | F58: 0.495616 | G58: 495.616 | H58: retlw 0x23 | V58: 25 | Y58: retlw 0x23 ;3255rpm | 10,3° | 0,5ms
B59: 73 | C59: 3210.616438 | D59: 51.91111111 | E59: 9.95 | F59: 0.5217066667 | G59: 521.7066667 | H59: retlw 0x25 | V59: 26 | Y59: retlw 0x25 ;3211rpm | 10° | 0,52ms
B60: 74 | C60: 3167.22973 | D60: 52.62222222 | E60: 9.58 | F60: 0.5483235556 | G60: 548.3235556 | H60: retlw 0x27 | V60: 27 | Y60: retlw 0x27 ;3167rpm | 9,6° | 0,55ms
B61: 75 | C61: 3125 | D61: 53.33333333 | E61: 9.21 | F61: 0.5754666667 | G61: 575.4666667 | H61: retlw 0x29 | V61: 28 | Y61: retlw 0x29 ;3125rpm | 9,2° | 0,58ms
B62: 76 | C62: 3083.881579 | D62: 54.04444444 | E62: 8.84 | F62: 0.603136 | G62: 603.136 | H62: retlw 0x2B | V62: 29 | Y62: retlw 0x2B ;3084rpm | 8,8° | 0,6ms
B63: 77 | C63: 3043.831169 | D63: 54.75555556 | E63: 8.47 | F63: 0.6313315556 | G63: 631.3315556 | H63: retlw 0x2D | V63: 30 | Y63: retlw 0x2D ;3044rpm | 8,5° | 0,63ms
B64: 78 | C64: 3004.807692 | D64: 55.46666667 | E64: 8.1 | F64: 0.6600533333 | G64: 660.0533333 | H64: retlw 0x2F | V64: 31 | Y64: retlw 0x2F ;3005rpm | 8,1° | 0,66ms
B65: 79 | C65: 2966.772152 | D65: 56.17777778 | E65: 7.73 | F65: 0.6893013333 | G65: 689.3013333 | H65: retlw 0x31 | V65: 32 | Y65: retlw 0x31 ;2967rpm | 7,7° | 0,69ms
B66: 80 | C66: 2929.6875 | D66: 56.88888889 | E66: 7.36 | F66: 0.7190755556 | G66: 719.0755556 | H66: retlw 0x33 | V66: 33 | Y66: retlw 0x33 ;2930rpm | 7,4° | 0,72ms
B67: 81 | C67: 2893.518519 | D67: 57.6 | E67: 6.99 | F67: 0.749376 | G67: 749.376 | H67: retlw 0x35 | V67: 34 | Y67: retlw 0x35 ;2894rpm | 7° | 0,75ms
B68: 82 | C68: 2858.231707 | D68: 58.31111111 | E68: 6.62 | F68: 0.7802026667 | G68: 780.2026667 | H68: retlw 0x37 | V68: 35 | Y68: retlw 0x37 ;2858rpm | 6,6° | 0,78ms
B69: 83 | C69: 2823.795181 | D69: 59.02222222 | E69: 6.25 | F69: 0.8115555556 | G69: 811.5555556 | H69: retlw 0x39 | V69: 36 | Y69: retlw 0x39 ;2824rpm | 6,3° | 0,81ms
B70: 84 | C70: 2790.178571 | D70: 59.73333333 | E70: 5.88 | F70: 0.8434346667 | G70: 843.4346667 | H70: retlw 0x3C | V70: 37 | Y70: retlw 0x3C ;2790rpm | 5,9° | 0,84ms
B71: 85 | C71: 2757.352941 | D71: 60.44444444 | E71: 5.51 | F71: 0.87584 | G71: 875.84 | H71: retlw 0x3E | V71: 38 | Y71: retlw 0x3E ;2757rpm | 5,5° | 0,88ms
B72: 86 | C72: 2725.290698 | D72: 61.15555556 | E72: 5.14 | F72: 0.9087715556 | G72: 908.7715556 | H72: retlw 0x40 | V72: 39 | Y72: retlw 0x40 ;2725rpm | 5,1° | 0,91ms
B73: 87 | C73: =120/(($D$5*B73/1000000)*2) -> 2693.965517 | D73: 61.86666667 | E73: 4.77 | F73: =(D73*($F$5-E73))/1000 -> 0.9422293333 | G73: 942.2293333 | H73: =IF($F73/$I$5>255," retlw 0xFF",IF($F73>0.01,CONCATENATE(" retlw 0x",DEC2HEX(INT($F73/$I$5),2),)," retlw 0x01")) -> retlw 0x43 | I73: =IF($F73/$I$5>255," retlw 0xFF",IF($F73>0.01,CONCATENATE(" retlw 0x",_xludf.DEC2HEX(INT($F73/$I$5),2),)," retlw 0x01")) ->  | J73: =IF($F73/$I$5>255," retlw 0xFF",IF($F73>0.01,CONCATENATE(" retlw 0x",DEC.TILL.HEX(INT($F73/$I$5),2),)," retlw 0x01")) ->  | K73: =IF($F73/$I$5>255," retlw 0xFF",IF($F73>0.01,CONCATENATE(" retlw 0x",DEC.N.HEX(INT($F73/$I$5),2),)," retlw 0x01")) ->  | V73: 40 | Y73: =CONCATENATE(H73," ;",ROUND(C73,0),"rpm | ",ROUND(E73,1),"° | ",,ROUND(F73,2),"ms ") -> retlw 0x43 ;2694rpm | 4,8° | 0,94ms
B74: 88 | C74: 2663.352273 | D74: =(1000000/(C74/60))/360 -> 62.57777778 | E74: 4.4 | F74: 0.9762133333 | G74: =D74*($F$5-E74) -> 976.2133333 | H74: retlw 0x45 | L74: =IF($F74/$I$5>255," Out of range! (change Step in cell H5 ?)","") ->  | Y74: retlw 0x45 ;2663rpm | 4,4° | 0,98ms
B75: =IF((B74+1)<(255),B74+1,"- End -") -> 89 | C75: 2633.426966 | D75: 63.28888889 | E75: 4.03 | F75: 1.010723556 | G75: 1010.723556 | H75: retlw 0x48 | Y75: retlw 0x48 ;2633rpm | 4° | 1,01ms
B76: 90 | C76: 2604.166667 | D76: 64 | E76: 3.66 | F76: 1.04576 | G76: 1045.76 | H76: retlw 0x4A | Y76: retlw 0x4A ;2604rpm | 3,7° | 1,05ms
B77: 91 | C77: 2575.549451 | D77: 64.71111111 | E77: 3.29 | F77: 1.081322667 | G77: 1081.322667 | H77: retlw 0x4D | Y77: retlw 0x4D ;2576rpm | 3,3° | 1,08ms
B78: 92 | C78: 2547.554348 | D78: 65.42222222 | E78: 2.92 | F78: 1.117411556 | G78: 1117.411556 | H78: retlw 0x4F | Y78: retlw 0x4F ;2548rpm | 2,9° | 1,12ms
B79: 93 | C79: 2520.16129 | D79: 66.13333333 | E79: 2.55 | F79: 1.154026667 | G79: 1154.026667 | H79: retlw 0x52 | Y79: retlw 0x52 ;2520rpm | 2,6° | 1,15ms
B80: 94 | C80: 2493.351064 | D80: 66.84444444 | E80: 2.18 | F80: 1.191168 | G80: 1191.168 | H80: retlw 0x55 | Y80: retlw 0x55 ;2493rpm | 2,2° | 1,19ms
B81: 95 | C81: 2467.105263 | D81: 67.55555556 | E81: 1.81 | F81: 1.228835556 | G81: 1228.835556 | H81: retlw 0x57 | Y81: retlw 0x57 ;2467rpm | 1,8° | 1,23ms
B82: 96 | C82: 2441.40625 | D82: 68.26666667 | E82: 1.44 | F82: 1.267029333 | G82: 1267.029333 | H82: retlw 0x5A | Y82: retlw 0x5A ;2441rpm | 1,4° | 1,27ms
B83: 97 | C83: 2416.237113 | D83: 68.97777778 | E83: 1.07 | F83: 1.305749333 | G83: 1305.749333 | H83: retlw 0x5D | Y83: retlw 0x5D ;2416rpm | 1,1° | 1,31ms
B84: 98 | C84: 2391.581633 | D84: 69.68888889 | E84: 1 | F84: 1.324088889 | G84: 1324.088889 | H84: retlw 0x5E | Y84: retlw 0x5E ;2392rpm | 1° | 1,32ms
B85: 99 | C85: 2367.424242 | D85: 70.4 | E85: 1 | F85: 1.3376 | G85: 1337.6 | H85: retlw 0x5F | Y85: retlw 0x5F ;2367rpm | 1° | 1,34ms
B86: 100 | C86: 2343.75 | D86: 71.11111111 | E86: 1 | F86: 1.351111111 | G86: 1351.111111 | H86: retlw 0x60 | Y86: retlw 0x60 ;2344rpm | 1° | 1,35ms
B87: 101 | C87: 2320.544554 | D87: 71.82222222 | E87: 1 | F87: 1.364622222 | G87: 1364.622222 | H87: retlw 0x61 | Y87: retlw 0x61 ;2321rpm | 1° | 1,36ms
B88: 102 | C88: 2297.794118 | D88: 72.53333333 | E88: 1 | F88: 1.378133333 | G88: 1378.133333 | H88: retlw 0x62 | Y88: retlw 0x62 ;2298rpm | 1° | 1,38ms
B89: 103 | C89: 2275.485437 | D89: 73.24444444 | E89: 1 | F89: 1.391644444 | G89: 1391.644444 | H89: retlw 0x63 | Y89: retlw 0x63 ;2275rpm | 1° | 1,39ms
B90: 104 | C90: 2253.605769 | D90: 73.95555556 | E90: 1 | F90: 1.405155556 | G90: 1405.155556 | H90: retlw 0x64 | Y90: retlw 0x64 ;2254rpm | 1° | 1,41ms
B91: 105 | C91: 2232.142857 | D91: 74.66666667 | E91: 1 | F91: 1.418666667 | G91: 1418.666667 | H91: retlw 0x65 | Y91: retlw 0x65 ;2232rpm | 1° | 1,42ms
B92: 106 | C92: 2211.084906 | D92: 75.37777778 | E92: 1 | F92: 1.432177778 | G92: 1432.177778 | H92: retlw 0x66 | Y92: retlw 0x66 ;2211rpm | 1° | 1,43ms
B93: 107 | C93: 2190.420561 | D93: 76.08888889 | E93: 1 | F93: 1.445688889 | G93: 1445.688889 | H93: retlw 0x67 | Y93: retlw 0x67 ;2190rpm | 1° | 1,45ms
B94: 108 | C94: 2170.138889 | D94: 76.8 | E94: 1 | F94: 1.4592 | G94: 1459.2 | H94: retlw 0x68 | Y94: retlw 0x68 ;2170rpm | 1° | 1,46ms
B95: 109 | C95: 2150.229358 | D95: 77.51111111 | E95: 1 | F95: 1.472711111 | G95: 1472.711111 | H95: retlw 0x69 | Y95: retlw 0x69 ;2150rpm | 1° | 1,47ms
B96: 110 | C96: 2130.681818 | D96: 78.22222222 | E96: 1 | F96: 1.486222222 | G96: 1486.222222 | H96: retlw 0x6A | Y96: retlw 0x6A ;2131rpm | 1° | 1,49ms
B97: 111 | C97: 2111.486486 | D97: 78.93333333 | E97: 1 | F97: 1.499733333 | G97: 1499.733333 | H97: retlw 0x6B | Y97: retlw 0x6B ;2111rpm | 1° | 1,5ms
B98: 112 | C98: 2092.633929 | D98: 79.64444444 | E98: 1 | F98: 1.513244444 | G98: 1513.244444 | H98: retlw 0x6C | Y98: retlw 0x6C ;2093rpm | 1° | 1,51ms
B99: 113 | C99: 2074.115044 | D99: 80.35555556 | E99: 1 | F99: 1.526755556 | G99: 1526.755556 | H99: retlw 0x6D | Y99: retlw 0x6D ;2074rpm | 1° | 1,53ms
B100: 114 | C100: 2055.921053 | D100: 81.06666667 | E100: 1 | F100: 1.540266667 | G100: 1540.266667 | H100: retlw 0x6E | Y100: retlw 0x6E ;2056rpm | 1° | 1,54ms
B101: 115 | C101: 2038.043478 | D101: 81.77777778 | E101: 1 | F101: 1.553777778 | G101: 1553.777778 | H101: retlw 0x6E | Y101: retlw 0x6E ;2038rpm | 1° | 1,55ms
B102: 116 | C102: 2020.474138 | D102: 82.48888889 | E102: 1 | F102: 1.567288889 | G102: 1567.288889 | H102: retlw 0x6F | Y102: retlw 0x6F ;2020rpm | 1° | 1,57ms
B103: 117 | C103: 2003.205128 | D103: 83.2 | E103: 1 | F103: 1.5808 | G103: 1580.8 | H103: retlw 0x70 | Y103: retlw 0x70 ;2003rpm | 1° | 1,58ms
B104: 118 | C104: 1986.228814 | D104: 83.91111111 | E104: 1 | F104: 1.594311111 | G104: 1594.311111 | H104: retlw 0x71 | Y104: retlw 0x71 ;1986rpm | 1° | 1,59ms
B105: 119 | C105: =120/(($D$5*B105/1000000)*2) -> 1969.537815 | D105: 84.62222222 | E105: 1 | F105: 1.607822222 | G105: 1607.822222 | H105: retlw 0x72 | Y105: retlw 0x72 ;1970rpm | 1° | 1,61ms
B106: 120 | C106: 1953.125 | D106: 85.33333333 | E106: 1 | F106: 1.621333333 | G106: 1621.333333 | H106: retlw 0x73 | Y106: retlw 0x73 ;1953rpm | 1° | 1,62ms
B107: 121 | C107: 1936.983471 | D107: 86.04444444 | E107: 1 | F107: 1.634844444 | G107: 1634.844444 | H107: retlw 0x74 | Y107: retlw 0x74 ;1937rpm | 1° | 1,63ms
B108: 122 | C108: 1921.106557 | D108: 86.75555556 | E108: 1 | F108: 1.648355556 | G108: 1648.355556 | H108: retlw 0x75 | Y108: retlw 0x75 ;1921rpm | 1° | 1,65ms
B109: 123 | C109: 1905.487805 | D109: 87.46666667 | E109: 1 | F109: 1.661866667 | G109: 1661.866667 | H109: retlw 0x76 | Y109: retlw 0x76 ;1905rpm | 1° | 1,66ms
B110: 124 | C110: 1890.120968 | D110: 88.17777778 | E110: 1 | F110: 1.675377778 | G110: 1675.377778 | H110: retlw 0x77 | Y110: retlw 0x77 ;1890rpm | 1° | 1,68ms
B111: 125 | C111: 1875 | D111: 88.88888889 | E111: 1 | F111: 1.688888889 | G111: 1688.888889 | H111: retlw 0x78 | Y111: retlw 0x78 ;1875rpm | 1° | 1,69ms
B112: 126 | C112: 1860.119048 | D112: 89.6 | E112: 1 | F112: 1.7024 | G112: 1702.4 | H112: retlw 0x79 | Y112: retlw 0x79 ;1860rpm | 1° | 1,7ms
B113: 127 | C113: 1845.472441 | D113: 90.31111111 | E113: 1 | F113: 1.715911111 | G113: 1715.911111 | H113: retlw 0x7A | Y113: retlw 0x7A ;1845rpm | 1° | 1,72ms
B114: 128 | C114: 1831.054688 | D114: 91.02222222 | E114: 1 | F114: 1.729422222 | G114: 1729.422222 | H114: retlw 0x7B | Y114: retlw 0x7B ;1831rpm | 1° | 1,73ms
B115: 129 | C115: 1816.860465 | D115: 91.73333333 | E115: 1 | F115: 1.742933333 | G115: 1742.933333 | H115: retlw 0x7C | Y115: retlw 0x7C ;1817rpm | 1° | 1,74ms
B116: 130 | C116: 1802.884615 | D116: 92.44444444 | E116: 1 | F116: 1.756444444 | G116: 1756.444444 | H116: retlw 0x7D | Y116: retlw 0x7D ;1803rpm | 1° | 1,76ms
B117: 131 | C117: 1789.122137 | D117: 93.15555556 | E117: 1 | F117: 1.769955556 | G117: 1769.955556 | H117: retlw 0x7E | Y117: retlw 0x7E ;1789rpm | 1° | 1,77ms
B118: 132 | C118: 1775.568182 | D118: 93.86666667 | E118: 1 | F118: 1.783466667 | G118: 1783.466667 | H118: retlw 0x7F | Y118: retlw 0x7F ;1776rpm | 1° | 1,78ms
B119: 133 | C119: 1762.218045 | D119: 94.57777778 | E119: 1 | F119: 1.796977778 | G119: 1796.977778 | H119: retlw 0x80 | Y119: retlw 0x80 ;1762rpm | 1° | 1,8ms
B120: 134 | C120: 1749.067164 | D120: 95.28888889 | E120: 1 | F120: 1.810488889 | G120: 1810.488889 | H120: retlw 0x81 | Y120: retlw 0x81 ;1749rpm | 1° | 1,81ms
B121: 135 | C121: 1736.111111 | D121: 96 | E121: 1 | F121: 1.824 | G121: 1824 | H121: retlw 0x82 | Y121: retlw 0x82 ;1736rpm | 1° | 1,82ms
B122: 136 | C122: 1723.345588 | D122: 96.71111111 | E122: 1 | F122: 1.837511111 | G122: 1837.511111 | H122: retlw 0x83 | Y122: retlw 0x83 ;1723rpm | 1° | 1,84ms
B123: 137 | C123: 1710.766423 | D123: 97.42222222 | E123: 1 | F123: 1.851022222 | G123: 1851.022222 | H123: retlw 0x84 | Y123: retlw 0x84 ;1711rpm | 1° | 1,85ms
B124: 138 | C124: 1698.369565 | D124: 98.13333333 | E124: 1 | F124: 1.864533333 | G124: 1864.533333 | H124: retlw 0x85 | Y124: retlw 0x85 ;1698rpm | 1° | 1,86ms
B125: 139 | C125: 1686.151079 | D125: 98.84444444 | E125: 1 | F125: 1.878044444 | G125: 1878.044444 | H125: retlw 0x86 | Y125: retlw 0x86 ;1686rpm | 1° | 1,88ms
B126: 140 | C126: 1674.107143 | D126: 99.55555556 | E126: 1 | F126: 1.891555556 | G126: 1891.555556 | H126: retlw 0x87 | Y126: retlw 0x87 ;1674rpm | 1° | 1,89ms
B127: 141 | C127: 1662.234043 | D127: 100.2666667 | E127: 1 | F127: 1.905066667 | G127: 1905.066667 | H127: retlw 0x88 | Y127: retlw 0x88 ;1662rpm | 1° | 1,91ms
B128: 142 | C128: 1650.528169 | D128: 100.9777778 | E128: 1 | F128: 1.918577778 | G128: 1918.577778 | H128: retlw 0x89 | Y128: retlw 0x89 ;1651rpm | 1° | 1,92ms
B129: 143 | C129: 1638.986014 | D129: 101.6888889 | E129: 1 | F129: 1.932088889 | G129: 1932.088889 | H129: retlw 0x8A | Y129: retlw 0x8A ;1639rpm | 1° | 1,93ms
B130: 144 | C130: 1627.604167 | D130: 102.4 | E130: 1 | F130: 1.9456 | G130: 1945.6 | H130: retlw 0x8A | Y130: retlw 0x8A ;1628rpm | 1° | 1,95ms
B131: 145 | C131: 1616.37931 | D131: 103.1111111 | E131: 1 | F131: 1.959111111 | G131: 1959.111111 | H131: retlw 0x8B | Y131: retlw 0x8B ;1616rpm | 1° | 1,96ms
B132: 146 | C132: 1605.308219 | D132: 103.8222222 | E132: 1 | F132: 1.972622222 | G132: 1972.622222 | H132: retlw 0x8C | Y132: retlw 0x8C ;1605rpm | 1° | 1,97ms
B133: 147 | C133: 1594.387755 | D133: 104.5333333 | E133: 1 | F133: 1.986133333 | G133: 1986.133333 | H133: retlw 0x8D | Y133: retlw 0x8D ;1594rpm | 1° | 1,99ms
B134: 148 | C134: 1583.614865 | D134: 105.2444444 | E134: 1 | F134: 1.999644444 | G134: 1999.644444 | H134: retlw 0x8E | Y134: retlw 0x8E ;1584rpm | 1° | 2ms
B135: 149 | C135: 1572.986577 | D135: 105.9555556 | E135: 1 | F135: 2.013155556 | G135: 2013.155556 | H135: retlw 0x8F | Y135: retlw 0x8F ;1573rpm | 1° | 2,01ms
B136: 150 | C136: 1562.5 | D136: 106.6666667 | E136: 1 | F136: 2.026666667 | G136: 2026.666667 | H136: retlw 0x90 | Y136: retlw 0x90 ;1563rpm | 1° | 2,03ms
B137: 151 | C137: =120/(($D$5*B137/1000000)*2) -> 1552.152318 | D137: 107.3777778 | E137: 1 | F137: =(D137*($F$5-E137))/1000 -> 2.040177778 | G137: 2040.177778 | H137: =IF($F137/$I$5>255," retlw 0xFF",IF($F137>0.01,CONCATENATE(" retlw 0x",DEC2HEX(INT($F137/$I$5),2),)," retlw 0x01")) -> retlw 0x91 | I137: =IF($F137/$I$5>255," retlw 0xFF",IF($F137>0.01,CONCATENATE(" retlw 0x",_xludf.DEC2HEX(INT($F137/$I$5),2),)," retlw 0x01")) ->  | J137: =IF($F137/$I$5>255," retlw 0xFF",IF($F137>0.01,CONCATENATE(" retlw 0x",DEC.TILL.HEX(INT($F137/$I$5),2),)," retlw 0x01")) ->  | K137: =IF($F137/$I$5>255," retlw 0xFF",IF($F137>0.01,CONCATENATE(" retlw 0x",DEC.N.HEX(INT($F137/$I$5),2),)," retlw 0x01")) ->  | Y137: =CONCATENATE(H137," ;",ROUND(C137,0),"rpm | ",ROUND(E137,1),"° | ",,ROUND(F137,2),"ms ") -> retlw 0x91 ;1552rpm | 1° | 2,04ms
B138: 152 | C138: 1541.940789 | D138: 108.0888889 | E138: 1 | F138: 2.053688889 | G138: =D138*($F$5-E138) -> 2053.688889 | H138: retlw 0x92 | L138: =IF($F138/$I$5>255," Out of range! (change Step in cell H5 ?)","") ->  | Y138: retlw 0x92 ;1542rpm | 1° | 2,05ms
B139: =IF((B138+1)<(255),B138+1,"- End -") -> 153 | C139: 1531.862745 | D139: 108.8 | E139: 1 | F139: 2.0672 | G139: 2067.2 | H139: retlw 0x93 | Y139: retlw 0x93 ;1532rpm | 1° | 2,07ms
B140: 154 | C140: 1521.915584 | D140: 109.5111111 | E140: 1 | F140: 2.080711111 | G140: 2080.711111 | H140: retlw 0x94 | Y140: retlw 0x94 ;1522rpm | 1° | 2,08ms
B141: 155 | C141: 1512.096774 | D141: 110.2222222 | E141: 1 | F141: 2.094222222 | G141: 2094.222222 | H141: retlw 0x95 | Y141: retlw 0x95 ;1512rpm | 1° | 2,09ms
B142: 156 | C142: 1502.403846 | D142: 110.9333333 | E142: 1 | F142: 2.107733333 | G142: 2107.733333 | H142: retlw 0x96 | Y142: retlw 0x96 ;1502rpm | 1° | 2,11ms
B143: 157 | C143: 1492.834395 | D143: 111.6444444 | E143: 1 | F143: 2.121244444 | G143: 2121.244444 | H143: retlw 0x97 | Y143: retlw 0x97 ;1493rpm | 1° | 2,12ms
B144: 158 | C144: 1483.386076 | D144: =(1000000/(C144/60))/360 -> 112.3555556 | E144: 1 | F144: 2.134755556 | G144: 2134.755556 | H144: retlw 0x98 | Y144: retlw 0x98 ;1483rpm | 1° | 2,13ms
B145: 159 | C145: 1474.056604 | D145: 113.0666667 | E145: 1 | F145: 2.148266667 | G145: 2148.266667 | H145: retlw 0x99 | Y145: retlw 0x99 ;1474rpm | 1° | 2,15ms
B146: 160 | C146: 1464.84375 | D146: 113.7777778 | E146: 1 | F146: 2.161777778 | G146: 2161.777778 | H146: retlw 0x9A | Y146: retlw 0x9A ;1465rpm | 1° | 2,16ms
B147: 161 | C147: 1455.745342 | D147: 114.4888889 | E147: 1 | F147: 2.175288889 | G147: 2175.288889 | H147: retlw 0x9B | Y147: retlw 0x9B ;1456rpm | 1° | 2,18ms
B148: 162 | C148: 1446.759259 | D148: 115.2 | E148: 1 | F148: 2.1888 | G148: 2188.8 | H148: retlw 0x9C | Y148: retlw 0x9C ;1447rpm | 1° | 2,19ms
B149: 163 | C149: 1437.883436 | D149: 115.9111111 | E149: 1 | F149: 2.202311111 | G149: 2202.311111 | H149: retlw 0x9D | Y149: retlw 0x9D ;1438rpm | 1° | 2,2ms
B150: 164 | C150: 1429.115854 | D150: 116.6222222 | E150: 1 | F150: 2.215822222 | G150: 2215.822222 | H150: retlw 0x9E | Y150: retlw 0x9E ;1429rpm | 1° | 2,22ms
B151: 165 | C151: 1420.454545 | D151: 117.3333333 | E151: 1 | F151: 2.229333333 | G151: 2229.333333 | H151: retlw 0x9F | Y151: retlw 0x9F ;1420rpm | 1° | 2,23ms
B152: 166 | C152: 1411.89759 | D152: 118.0444444 | E152: 1 | F152: 2.242844444 | G152: 2242.844444 | H152: retlw 0xA0 | Y152: retlw 0xA0 ;1412rpm | 1° | 2,24ms
B153: 167 | C153: 1403.443114 | D153: 118.7555556 | E153: 1 | F153: 2.256355556 | G153: 2256.355556 | H153: retlw 0xA1 | Y153: retlw 0xA1 ;1403rpm | 1° | 2,26ms
B154: 168 | C154: 1395.089286 | D154: 119.4666667 | E154: 1 | F154: 2.269866667 | G154: 2269.866667 | H154: retlw 0xA2 | Y154: retlw 0xA2 ;1395rpm | 1° | 2,27ms
B155: 169 | C155: 1386.83432 | D155: 120.1777778 | E155: 1 | F155: 2.283377778 | G155: 2283.377778 | H155: retlw 0xA3 | Y155: retlw 0xA3 ;1387rpm | 1° | 2,28ms
B156: 170 | C156: 1378.676471 | D156: 120.8888889 | E156: 1 | F156: 2.296888889 | G156: 2296.888889 | H156: retlw 0xA4 | Y156: retlw 0xA4 ;1379rpm | 1° | 2,3ms
B157: 171 | C157: 1370.614035 | D157: 121.6 | E157: 1 | F157: 2.3104 | G157: 2310.4 | H157: retlw 0xA5 | Y157: retlw 0xA5 ;1371rpm | 1° | 2,31ms
B158: 172 | C158: 1362.645349 | D158: 122.3111111 | E158: 1 | F158: 2.323911111 | G158: 2323.911111 | H158: retlw 0xA5 | Y158: retlw 0xA5 ;1363rpm | 1° | 2,32ms
B159: 173 | C159: 1354.768786 | D159: 123.0222222 | E159: 1 | F159: 2.337422222 | G159: 2337.422222 | H159: retlw 0xA6 | Y159: retlw 0xA6 ;1355rpm | 1° | 2,34ms
B160: 174 | C160: 1346.982759 | D160: 123.7333333 | E160: 1 | F160: 2.350933333 | G160: 2350.933333 | H160: retlw 0xA7 | Y160: retlw 0xA7 ;1347rpm | 1° | 2,35ms
B161: 175 | C161: 1339.285714 | D161: 124.4444444 | E161: 1 | F161: 2.364444444 | G161: 2364.444444 | H161: retlw 0xA8 | Y161: retlw 0xA8 ;1339rpm | 1° | 2,36ms
B162: 176 | C162: 1331.676136 | D162: 125.1555556 | E162: 1 | F162: 2.377955556 | G162: 2377.955556 | H162: retlw 0xA9 | Y162: retlw 0xA9 ;1332rpm | 1° | 2,38ms
B163: 177 | C163: 1324.152542 | D163: 125.8666667 | E163: 1 | F163: 2.391466667 | G163: 2391.466667 | H163: retlw 0xAA | Y163: retlw 0xAA ;1324rpm | 1° | 2,39ms
B164: 178 | C164: 1316.713483 | D164: 126.5777778 | E164: 1 | F164: 2.404977778 | G164: 2404.977778 | H164: retlw 0xAB | Y164: retlw 0xAB ;1317rpm | 1° | 2,4ms
B165: 179 | C165: 1309.357542 | D165: 127.2888889 | E165: 1 | F165: 2.418488889 | G165: 2418.488889 | H165: retlw 0xAC | Y165: retlw 0xAC ;1309rpm | 1° | 2,42ms
B166: 180 | C166: 1302.083333 | D166: 128 | E166: 1 | F166: 2.432 | G166: 2432 | H166: retlw 0xAD | Y166: retlw 0xAD ;1302rpm | 1° | 2,43ms
B167: 181 | C167: 1294.889503 | D167: 128.7111111 | E167: 1 | F167: 2.445511111 | G167: 2445.511111 | H167: retlw 0xAE | Y167: retlw 0xAE ;1295rpm | 1° | 2,45ms
B168: 182 | C168: 1287.774725 | D168: 129.4222222 | E168: 1 | F168: 2.459022222 | G168: 2459.022222 | H168: retlw 0xAF | Y168: retlw 0xAF ;1288rpm | 1° | 2,46ms
B169: 183 | C169: 1280.737705 | D169: 130.1333333 | E169: 1 | F169: 2.472533333 | G169: 2472.533333 | H169: retlw 0xB0 | Y169: retlw 0xB0 ;1281rpm | 1° | 2,47ms
B170: 184 | C170: 1273.777174 | D170: 130.8444444 | E170: 1 | F170: 2.486044444 | G170: 2486.044444 | H170: retlw 0xB1 | Y170: retlw 0xB1 ;1274rpm | 1° | 2,49ms
B171: 185 | C171: 1266.891892 | D171: 131.5555556 | E171: 1 | F171: 2.499555556 | G171: 2499.555556 | H171: retlw 0xB2 | Y171: retlw 0xB2 ;1267rpm | 1° | 2,5ms
B172: 186 | C172: 1260.080645 | D172: 132.2666667 | E172: 1 | F172: 2.513066667 | G172: 2513.066667 | H172: retlw 0xB3 | Y172: retlw 0xB3 ;1260rpm | 1° | 2,51ms
B173: 187 | C173: 1253.342246 | D173: 132.9777778 | E173: 1 | F173: 2.526577778 | G173: 2526.577778 | H173: retlw 0xB4 | Y173: retlw 0xB4 ;1253rpm | 1° | 2,53ms
B174: 188 | C174: 1246.675532 | D174: 133.6888889 | E174: 1 | F174: 2.540088889 | G174: 2540.088889 | H174: retlw 0xB5 | Y174: retlw 0xB5 ;1247rpm | 1° | 2,54ms
B175: 189 | C175: 1240.079365 | D175: 134.4 | E175: 1 | F175: 2.5536 | G175: 2553.6 | H175: retlw 0xB6 | Y175: retlw 0xB6 ;1240rpm | 1° | 2,55ms
B176: 190 | C176: 1233.552632 | D176: 135.1111111 | E176: 1 | F176: 2.567111111 | G176: 2567.111111 | H176: retlw 0xB7 | Y176: retlw 0xB7 ;1234rpm | 1° | 2,57ms
B177: 191 | C177: 1227.094241 | D177: 135.8222222 | E177: 1 | F177: 2.580622222 | G177: 2580.622222 | H177: retlw 0xB8 | Y177: retlw 0xB8 ;1227rpm | 1° | 2,58ms
B178: 192 | C178: 1220.703125 | D178: 136.5333333 | E178: 1 | F178: 2.594133333 | G178: 2594.133333 | H178: retlw 0xB9 | Y178: retlw 0xB9 ;1221rpm | 1° | 2,59ms
B179: 193 | C179: 1214.378238 | D179: 137.2444444 | E179: 1 | F179: 2.607644444 | G179: 2607.644444 | H179: retlw 0xBA | Y179: retlw 0xBA ;1214rpm | 1° | 2,61ms
B180: 194 | C180: 1208.118557 | D180: 137.9555556 | E180: 1 | F180: 2.621155556 | G180: 2621.155556 | H180: retlw 0xBB | Y180: retlw 0xBB ;1208rpm | 1° | 2,62ms
B181: 195 | C181: 1201.923077 | D181: 138.6666667 | E181: 1 | F181: 2.634666667 | G181: 2634.666667 | H181: retlw 0xBC | Y181: retlw 0xBC ;1202rpm | 1° | 2,63ms
B182: 196 | C182: 1195.790816 | D182: 139.3777778 | E182: 1 | F182: 2.648177778 | G182: 2648.177778 | H182: retlw 0xBD | Y182: retlw 0xBD ;1196rpm | 1° | 2,65ms
B183: 197 | C183: 1189.720812 | D183: 140.0888889 | E183: 1 | F183: 2.661688889 | G183: 2661.688889 | H183: retlw 0xBE | Y183: retlw 0xBE ;1190rpm | 1° | 2,66ms
B184: 198 | C184: 1183.712121 | D184: 140.8 | E184: 1 | F184: 2.6752 | G184: 2675.2 | H184: retlw 0xBF | Y184: retlw 0xBF ;1184rpm | 1° | 2,68ms
B185: 199 | C185: 1177.763819 | D185: 141.5111111 | E185: 1 | F185: 2.688711111 | G185: 2688.711111 | H185: retlw 0xC0 | Y185: retlw 0xC0 ;1178rpm | 1° | 2,69ms
B186: 200 | C186: 1171.875 | D186: 142.2222222 | E186: 1 | F186: 2.702222222 | G186: 2702.222222 | H186: retlw 0xC1 | Y186: retlw 0xC1 ;1172rpm | 1° | 2,7ms
B187: 201 | C187: 1166.044776 | D187: 142.9333333 | E187: 1 | F187: 2.715733333 | G187: 2715.733333 | H187: retlw 0xC1 | Y187: retlw 0xC1 ;1166rpm | 1° | 2,72ms
B188: 202 | C188: 1160.272277 | D188: 143.6444444 | E188: 1 | F188: 2.729244444 | G188: 2729.244444 | H188: retlw 0xC2 | Y188: retlw 0xC2 ;1160rpm | 1° | 2,73ms
B189: 203 | C189: 1154.55665 | D189: 144.3555556 | E189: 1 | F189: 2.742755556 | G189: 2742.755556 | H189: retlw 0xC3 | Y189: retlw 0xC3 ;1155rpm | 1° | 2,74ms
B190: 204 | C190: 1148.897059 | D190: 145.0666667 | E190: 1 | F190: 2.756266667 | G190: 2756.266667 | H190: retlw 0xC4 | Y190: retlw 0xC4 ;1149rpm | 1° | 2,76ms
B191: 205 | C191: 1143.292683 | D191: 145.7777778 | E191: 1 | F191: 2.769777778 | G191: 2769.777778 | H191: retlw 0xC5 | Y191: retlw 0xC5 ;1143rpm | 1° | 2,77ms
B192: 206 | C192: 1137.742718 | D192: 146.4888889 | E192: 1 | F192: 2.783288889 | G192: 2783.288889 | H192: retlw 0xC6 | Y192: retlw 0xC6 ;1138rpm | 1° | 2,78ms
B193: 207 | C193: 1132.246377 | D193: 147.2 | E193: 1 | F193: 2.7968 | G193: 2796.8 | H193: retlw 0xC7 | Y193: retlw 0xC7 ;1132rpm | 1° | 2,8ms
B194: 208 | C194: 1126.802885 | D194: 147.9111111 | E194: 1 | F194: 2.810311111 | G194: 2810.311111 | H194: retlw 0xC8 | Y194: retlw 0xC8 ;1127rpm | 1° | 2,81ms
B195: 209 | C195: 1121.411483 | D195: 148.6222222 | E195: 1 | F195: 2.823822222 | G195: 2823.822222 | H195: retlw 0xC9 | Y195: retlw 0xC9 ;1121rpm | 1° | 2,82ms
B196: 210 | C196: 1116.071429 | D196: 149.3333333 | E196: 1 | F196: 2.837333333 | G196: 2837.333333 | H196: retlw 0xCA | Y196: retlw 0xCA ;1116rpm | 1° | 2,84ms
B197: 211 | C197: 1110.781991 | D197: 150.0444444 | E197: 1 | F197: 2.850844444 | G197: 2850.844444 | H197: retlw 0xCB | Y197: retlw 0xCB ;1111rpm | 1° | 2,85ms
B198: 212 | C198: 1105.542453 | D198: 150.7555556 | E198: 1 | F198: 2.864355556 | G198: 2864.355556 | H198: retlw 0xCC | Y198: retlw 0xCC ;1106rpm | 1° | 2,86ms
B199: 213 | C199: 1100.352113 | D199: 151.4666667 | E199: 1 | F199: 2.877866667 | G199: 2877.866667 | H199: retlw 0xCD | Y199: retlw 0xCD ;1100rpm | 1° | 2,88ms
B200: 214 | C200: 1095.21028 | D200: 152.1777778 | E200: 1 | F200: 2.891377778 | G200: 2891.377778 | H200: retlw 0xCE | Y200: retlw 0xCE ;1095rpm | 1° | 2,89ms
... 45 more rows

Sheet advance_at_lowRPM
B2: Advance at low RPM | D2: =CONCATENATE("< ",INT(Advance_curve!C244)," RPM") ->  | F2: Prescaler = | G2: =Advance_curve!D5 -> 256 | H2: Perl x | I2: 4 | J2: Ajout : | K2: 0 | V2: =Advance_curve!$F$5 -> 20
V3: =(Q8/360000)*Advance_curve!$F$5-U8 -> -7.184444444
B5: Nombre de | C5: Nombre | D5: Frequence | E5: Regime | F5: Periode | H5: TMR0 | I5: tmr0h | J5: Delay | L5: =IF(M8>0,"Avance","RETARD") -> RETARD
B6: Cylindres | C6: de temps | L6: BTDC | O6: Frq | P6: RPM | Q6: periode | R6: TMR0 | S6: tmr0h | T6: Delay | V6: Avance | W6: Avance
D7: Hz | E7: tr/mn | F7: ms | G7: µs | I7: =IF(I8>127,"erreur","") ->  | J7: µs | K7: ms | L7: ms | M7: degrees | O7: Hz | Q7: µs | T7: µs | U7: ms | V7: ms | W7: degres
B8: 1 | C8: 2 | D8: 16 | E8: =(D8*60*C8)/(2*B8) -> 960 | F8: =1000/D8 -> 62.5 | G8: =1000000/D8 -> 62500 | H8: =(G8/G2) -255*I8 -> 244.140625 | I8: =INT(G8/(G2*255)) -> 0 | J8: =($H$8)*$I$2*4+($I$8*$I$2+$K$2)*1024 -> 3906.25 | K8: =J8/1000 -> 3.90625 | L8: =(F8/360)*Advance_curve!F5 - K8 -> -0.4340277778 | M8: =(F8/360)*L8 -> -0.07535204475 | O8: 1 | P8: =(O8*60*$C$8)/(2*$B$8) -> 60 | Q8: =1000000/O8 -> 1000000 | R8: =(Q8/$G$2) -255*S8 -> 81.25 | S8: =INT(Q8/($G$2*255)) -> 15 | T8: =(R8+$K$2)*$I$2*4+(S8*$I$2+$K$2)*1024 -> 62740 | U8: =T8/1000 -> 62.74 | V8: =(Q8/360000)*Advance_curve!$F$5-U8 -> -7.184444444 | W8: =(360000/Q8)*V8 -> -2.5864
O9: 2 | P9: =(O9*60*$C$8)/(2*$B$8) -> 120 | Q9: =1000000/O9 -> 500000 | R9: =(Q9/$G$2) -255*S9 -> 168.125 | S9: =INT(Q9/($G$2*255)) -> 7 | T9: =(R9+$K$2)*$I$2*4+(S9*$I$2+$K$2)*1024 -> 31362 | U9: 31.362 | V9: =(Q9/360000)*Advance_curve!$F$5-U9 -> -3.584222222 | W9: =(360000/Q9)*V9 -> -2.58064
O10: 3 | P10: 180 | Q10: 333333.3333 | R10: 27.08333333 | S10: 5 | T10: 20913.33333 | U10: 20.91333333 | V10: =(Q10/360000)*Advance_curve!$F$5-U10 -> -2.394814815 | W10: -2.5864
O11: 4 | P11: 240 | Q11: 250000 | R11: 211.5625 | S11: 3 | T11: 15673 | U11: 15.673 | V11: =(Q11/360000)*Advance_curve!$F$5-U11 -> -1.784111111 | W11: -2.56912
O12: 5 | P12: 300 | Q12: 200000 | R12: 16.25 | S12: 3 | T12: 12548 | U12: 12.548 | V12: =(Q12/360000)*Advance_curve!$F$5-U12 -> -1.436888889 | W12: -2.5864
O13: 6 | P13: 360 | Q13: 166666.6667 | R13: 141.0416667 | S13: 2 | T13: 10448.66667 | U13: 10.44866667 | V13: =(Q13/360000)*Advance_curve!$F$5-U13 -> -1.189407407 | W13: -2.56912
O14: 7 | P14: 420 | Q14: 142857.1429 | R14: 48.03571429 | S14: 2 | T14: 8960.571429 | U14: 8.960571429 | V14: =(Q14/360000)*Advance_curve!$F$5-U14 -> -1.024063492 | W14: -2.58064
O15: 8 | P15: 480 | Q15: 125000 | R15: 233.28125 | S15: 1 | T15: 7828.5 | U15: 7.8285 | V15: =(Q15/360000)*Advance_curve!$F$5-U15 -> -0.8840555556 | W15: -2.54608
O16: 9 | P16: 540 | Q16: 111111.1111 | R16: 179.0277778 | S16: 1 | T16: 6960.444444 | U16: 6.960444444 | V16: =(Q16/360000)*Advance_curve!$F$5-U16 -> -0.7876049383 | W16: -2.55184
O17: 10 | P17: 600 | Q17: 100000 | R17: 135.625 | S17: 1 | T17: 6266 | U17: 6.266 | V17: =(Q17/360000)*Advance_curve!$F$5-U17 -> -0.7104444444 | W17: -2.5576
O18: 11 | P18: 660 | Q18: 90909.09091 | R18: 100.1136364 | S18: 1 | T18: 5697.818182 | U18: 5.697818182 | V18: =(Q18/360000)*Advance_curve!$F$5-U18 -> -0.6473131313 | W18: -2.56336
O19: 12 | P19: 720 | Q19: 83333.33333 | R19: 70.52083333 | S19: 1 | T19: 5224.333333 | U19: 5.224333333 | V19: =(Q19/360000)*Advance_curve!$F$5-U19 -> -0.5947037037 | W19: -2.56912
O20: 13 | P20: 780 | Q20: 76923.07692 | R20: 45.48076923 | S20: 1 | T20: 4823.692308 | U20: 4.823692308 | V20: =(Q20/360000)*Advance_curve!$F$5-U20 -> -0.5501880342 | W20: -2.57488
O21: 14 | P21: 840 | Q21: 71428.57143 | R21: 24.01785714 | S21: 1 | T21: 4480.285714 | U21: 4.480285714 | V21: =(Q21/360000)*Advance_curve!$F$5-U21 -> -0.512031746 | W21: -2.58064
O22: 15 | P22: 900 | Q22: 66666.66667 | R22: 5.416666667 | S22: 1 | T22: 4182.666667 | U22: 4.182666667 | V22: =(Q22/360000)*Advance_curve!$F$5-U22 -> -0.478962963 | W22: -2.5864
O23: 16 | P23: 960 | Q23: 62500 | R23: 244.140625 | S23: 0 | T23: 3906.25 | U23: 3.90625 | V23: =(Q23/360000)*Advance_curve!$F$5-U23 -> -0.4340277778 | W23: -2.5
O24: 17 | P24: 1020 | Q24: 58823.52941 | R24: 229.7794118 | S24: 0 | T24: 3676.470588 | U24: 3.676470588 | V24: =(Q24/360000)*Advance_curve!$F$5-U24 -> -0.408496732 | W24: -2.5
O25: 18 | P25: 1080 | Q25: 55555.55556 | R25: 217.0138889 | S25: 0 | T25: 3472.222222 | U25: 3.472222222 | V25: =(Q25/360000)*Advance_curve!$F$5-U25 -> -0.3858024691 | W25: -2.5
O26: 19 | P26: 1140 | Q26: 52631.57895 | R26: 205.5921053 | S26: 0 | T26: 3289.473684 | U26: 3.289473684 | V26: =(Q26/360000)*Advance_curve!$F$5-U26 -> -0.365497076 | W26: -2.5
O27: 20 | P27: 1200 | Q27: 50000 | R27: 195.3125 | S27: 0 | T27: 3125 | U27: 3.125 | V27: =(Q27/360000)*Advance_curve!$F$5-U27 -> -0.3472222222 | W27: -2.5
O28: 21 | P28: 1260 | Q28: 47619.04762 | R28: 186.0119048 | S28: 0 | T28: 2976.190476 | U28: 2.976190476 | V28: =(Q28/360000)*Advance_curve!$F$5-U28 -> -0.3306878307 | W28: -2.5
O29: 22 | P29: 1320 | Q29: 45454.54545 | R29: 177.5568182 | S29: 0 | T29: 2840.909091 | U29: 2.840909091 | V29: =(Q29/360000)*Advance_curve!$F$5-U29 -> -0.3156565657 | W29: -2.5
O30: 23 | P30: 1380 | Q30: 43478.26087 | R30: 169.8369565 | S30: 0 | T30: 2717.391304 | U30: 2.717391304 | V30: =(Q30/360000)*Advance_curve!$F$5-U30 -> -0.3019323671 | W30: -2.5
O31: 24 | P31: 1440 | Q31: 41666.66667 | R31: 162.7604167 | S31: 0 | T31: 2604.166667 | U31: 2.604166667 | V31: =(Q31/360000)*Advance_curve!$F$5-U31 -> -0.2893518519 | W31: -2.5
O32: 25 | P32: 1500 | Q32: =1000000/O32 -> 40000 | R32: 156.25 | S32: =INT(Q32/($G$2*255)) -> 0 | T32: 2500 | U32: 2.5 | V32: =(Q32/360000)*Advance_curve!$F$5-U32 -> -0.2777777778 | W32: -2.5
A33: 1 | B33: The advance "curve" below 1000rpm, is not a curve but a straight line. (Y=aX+b in maths) | O33: 26 | P33: 1560 | Q33: 38461.53846 | R33: 150.2403846 | S33: 0 | T33: 2403.846154 | U33: 2.403846154 | V33: =(Q33/360000)*Advance_curve!$F$5-U33 -> -0.2670940171 | W33: -2.5
A34: 2 | B34: a(=perl) is the multiplier while b in a constant (-4 to +4 or more..) | O34: 27 | P34: 1620 | Q34: 37037.03704 | R34: 144.6759259 | S34: 0 | T34: 2314.814815 | U34: 2.314814815 | V34: =(Q34/360000)*Advance_curve!$F$5-U34 -> -0.2572016461 | W34: -2.5
A35: 4 | O35: 28 | P35: 1680 | Q35: 35714.28571 | R35: 139.5089286 | S35: 0 | T35: 2232.142857 | U35: 2.232142857 | V35: =(Q35/360000)*Advance_curve!$F$5-U35 -> -0.248015873 | W35: -2.5
A36: 8 | B36: First you have to play with the second tab of the excel to draw the best line that fit your engine, | O36: 29 | P36: 1740 | Q36: 34482.75862 | R36: 134.6982759 | S36: 0 | T36: 2155.172414 | U36: 2.155172414 | V36: =(Q36/360000)*Advance_curve!$F$5-U36 -> -0.2394636015 | W36: -2.5
O37: 30 | P37: 1800 | Q37: 33333.33333 | R37: 130.2083333 | S37: 0 | T37: 2083.333333 | U37: 2.083333333 | V37: =(Q37/360000)*Advance_curve!$F$5-U37 -> -0.2314814815 | W37: -2.5
B38: 1) imagine you found that the best line is when perl=2 and Ajout(add) is 4, then you must modify the ASM this way: | O38: 31 | P38: =(O38*60*$C$8)/(2*$B$8) -> 1860 | Q38: 32258.06452 | R38: =(Q38/$G$2) -255*S38 -> 126.0080645 | S38: 0 | T38: 2016.129032 | U38: =T38/1000 -> 2.016129032 | V38: =(Q38/360000)*Advance_curve!$F$5-U38 -> -0.2240143369 | W38: -2.5
O39: 32 | P39: 1920 | Q39: 31250 | R39: 122.0703125 | S39: 0 | T39: 1953.125 | U39: 1.953125 | V39: =(Q39/360000)*Advance_curve!$F$5-U39 -> -0.2170138889 | W39: -2.5
B40: low_rpm BCF STATUS,C ; yes perl>239 (<976rpm, <16Hz ) | O40: 33 | P40: 1980 | Q40: 30303.0303 | R40: 118.3712121 | S40: 0 | T40: 1893.939394 | U40: 1.893939394 | V40: =(Q40/360000)*Advance_curve!$F$5-U40 -> -0.2104377104 | W40: -2.5
B41: RLF perl,f ; periode *2 | O41: 34 | P41: 2040 | Q41: 29411.76471 | R41: 114.8897059 | S41: 0 | T41: 1838.235294 | U41: 1.838235294 | V41: =(Q41/360000)*Advance_curve!$F$5-U41 -> -0.204248366 | W41: -2.5
B42: BTFSC STATUS,C ; si >255 | O42: 35 | P42: 2100 | Q42: 28571.42857 | R42: 111.6071429 | S42: 0 | T42: 1785.714286 | U42: 1.785714286 | V42: =(Q42/360000)*Advance_curve!$F$5-U42 -> -0.1984126984 | W42: -2.5
B43: INCF perh,f ; report de la retenue | O43: 36 | P43: 2160 | Q43: 27777.77778 | R43: 108.5069444 | S43: 0 | T43: 1736.111111 | U43: 1.736111111 | V43: =(Q43/360000)*Advance_curve!$F$5-U43 -> -0.1929012346 | W43: -2.5
A44: -1 | B44: RLF perh,f | O44: 37 | P44: 2220 | Q44: 27027.02703 | R44: 105.5743243 | S44: 0 | T44: 1689.189189 | U44: 1.689189189 | V44: =(Q44/360000)*Advance_curve!$F$5-U44 -> -0.1876876877 | W44: -2.5
A45: 0 | B45: ; | O45: 38 | P45: 2280 | Q45: 26315.78947 | R45: 102.7960526 | S45: 0 | T45: 1644.736842 | U45: 1.644736842 | V45: =(Q45/360000)*Advance_curve!$F$5-U45 -> -0.182748538 | W45: -2.5
A46: 1 | B46: ; RLF perl,f ; periode *4 <= comment or remove | O46: 39 | P46: 2340 | Q46: 25641.02564 | R46: 100.1602564 | S46: 0 | T46: 1602.564103 | U46: 1.602564103 | V46: =(Q46/360000)*Advance_curve!$F$5-U46 -> -0.1780626781 | W46: -2.5
A47: 2 | B47: ; BTFSC STATUS,C <= comment or remove | O47: 40 | P47: 2400 | Q47: 25000 | R47: 97.65625 | S47: 0 | T47: 1562.5 | U47: 1.5625 | V47: =(Q47/360000)*Advance_curve!$F$5-U47 -> -0.1736111111 | W47: -2.5
A48: 3 | B48: ; INCF perh,f <= comment or remove | O48: 41 | P48: 2460 | Q48: 24390.2439 | R48: 95.27439024 | S48: 0 | T48: 1524.390244 | U48: 1.524390244 | V48: =(Q48/360000)*Advance_curve!$F$5-U48 -> -0.1693766938 | W48: -2.5
B49: ; RLF perh,f <= comment or remove | O49: 42 | P49: 2520 | Q49: 23809.52381 | R49: 93.00595238 | S49: 0 | T49: 1488.095238 | U49: 1.488095238 | V49: =(Q49/360000)*Advance_curve!$F$5-U49 -> -0.1653439153 | W49: -2.5
B50: ;
B51: ; RLF perl,f ; periode *8 <= comment or remove
B52: ; BTFSC STATUS,C <= comment or remove
B53: ; INCF perh,f <= comment or remove
B54: ; RLF perh,f <= comment or remove
B56: INCF perh,f ; + 1 <= uncomment and/or add 4 same similar lines to get "Ajout=4"
B57: INCF perh,f ; + 1
B58: INCF perh,f ; + 1
B59: INCF perh,f ; + 1
B62: 2) imagine you found that the best line is when perl=8 and Ajout(add) is -1 (minus 1), then you must modify the ASM this way:
B64: low_rpm BCF STATUS,C ; yes perl>239 (<976rpm, <16Hz )
B65: RLF perl,f ; periode *2
B66: BTFSC STATUS,C ; si >255
B67: INCF perh,f ; report de la retenue
B68: RLF perh,f
B69: ;
B70: RLF perl,f ; periode *4
B71: BTFSC STATUS,C
B72: INCF perh,f
B73: RLF perh,f
B74: ;
B75: RLF perl,f ; periode *8
B76: BTFSC STATUS,C
B77: INCF perh,f
B78: RLF perh,f
B80: ; INCF perh,f ; + 1 <= comment or remove increment
B81: MOVLW 1 ; w=1 <= uncomment and/or add the substraction
B82: SUBWF perh,f ; -1

Sheet formules
A1: TEMPS | B1: CYLINDRE | C1: RPM | D1: FREQUENCE | E1: PERIODE | F1: PERIODE
A2: Nbr | B2: Nbr | C2: tr/mn | D2: Hz | E2: ms | F2: pour 2cyl 2tps
A3: 2 | B3: 1 | C3: 600 | D3: =(2*$B$3*$C$3)/(60*$A$3) -> 10 | E3: =1000*(60*$A$3)/(2*$B$3*$C$3) -> 100 | F3: =1000*60/$C$3 -> 100
A6: FRQ= (2xCYL x RPM) / 60 x TEMPS
A7: RPM= (FRQ x 60 x TEMPS) / 2xCYL

Sheet Feuil1
A1: RPM | B1: MAP1 | C1: MAP2
A2: 11718.75 | B2: 20 | C2: 19.1
A3: 11160.71429 | B3: 20 | C3: 19.2
A4: 10653.40909 | B4: 20 | C4: 19.3
A5: 10190.21739 | B5: 20 | C5: 19.4
A6: 9765.625 | B6: 20 | C6: 19.5
A7: 9375 | B7: 20 | C7: 19.6
A8: 9014.423077 | B8: 20 | C8: 19.7
A9: 8680.555556 | B9: 20 | C9: 19.8
A10: 8370.535714 | B10: 20 | C10: 19.9
A11: 8081.896552 | B11: 20 | C11: 20
A12: 7812.5 | B12: 20 | C12: 20
A13: 7560.483871 | B13: 20 | C13: 20
A14: 7324.21875 | B14: 20 | C14: 20
A15: 7102.272727 | B15: 20 | C15: 20
A16: 6893.382353 | B16: 20 | C16: 20
A17: 6696.428571 | B17: 19.9 | C17: 20
A18: 6510.416667 | B18: 19.797 | C18: 20
A19: 6334.459459 | B19: 19.734 | C19: 20
A20: 6167.763158 | B20: 19.671 | C20: 20
A21: 6009.615385 | B21: 19.608 | C21: 20
A22: 5859.375 | B22: 19.545 | C22: 20
A23: 5716.463415 | B23: 19.482 | C23: 20
A24: 5580.357143 | B24: 19.419 | C24: 20
A25: 5450.581395 | B25: 19.356 | C25: 20
A26: 5326.704545 | B26: 19.293 | C26: 20
A27: 5208.333333 | B27: 19.23 | C27: 20
A28: 5095.108696 | B28: 19.167 | C28: 20
A29: 4986.702128 | B29: 19.104 | C29: 20
A30: 4882.8125 | B30: 19.041 | C30: 20
A31: 4783.163265 | B31: 18.978 | C31: 20
A32: 4687.5 | B32: 18.915 | C32: 20
A33: 4595.588235 | B33: 18.852 | C33: 20
A34: 4507.211538 | B34: 18.789 | C34: 20
A35: 4422.169811 | B35: 18.726 | C35: 20
A36: 4340.277778 | B36: 18.663 | C36: 20
A37: 4261.363636 | B37: 18.6 | C37: 19.834
A38: 4185.267857 | B38: 18.537 | C38: 19.748
A39: 4111.842105 | B39: 18.474 | C39: 19.662
A40: 4040.948276 | B40: 18.411 | C40: 19.576
A41: 3972.457627 | B41: 18.348 | C41: 19.49
A42: 3906.25 | B42: 18.285 | C42: 19.404
A43: 3842.213115 | B43: 18.222 | C43: 19.318
A44: 3780.241935 | B44: 18.159 | C44: 19.232
A45: 3720.238095 | B45: 18.096 | C45: 19.146
A46: 3662.109375 | B46: 18.033 | C46: 19.06
A47: 3605.769231 | B47: 17.97 | C47: 18.974
A48: 3551.136364 | B48: 17.907 | C48: 18.888
A49: 3498.134328 | B49: 17.844 | C49: 18.802
A50: 3446.691176 | B50: 17.781 | C50: 18.716
A51: 3396.73913 | B51: 17.718 | C51: 18.63
A52: 3348.214286 | B52: 17.655 | C52: 18.544
A53: 3301.056338 | B53: 17.592 | C53: 18.458
A54: 3255.208333 | B54: 17.529 | C54: 18.372
A55: 3210.616438 | B55: 17.466 | C55: 18.286
A56: 3167.22973 | B56: 17.403 | C56: 18.2
A57: 3125 | B57: 17.34 | C57: 18.114
A58: 3083.881579 | B58: 17.277 | C58: 18.028
A59: 3043.831169 | B59: 17.214 | C59: 17.942
A60: 3004.807692 | B60: 17.151 | C60: 17.856
A61: 2966.772152 | B61: 17.088 | C61: 17.77
A62: 2929.6875 | B62: 17.025 | C62: 17.684
A63: 2893.518519 | B63: 16.962 | C63: 17.598
A64: 2858.231707 | B64: 16.899 | C64: 17.512
A65: 2823.795181 | B65: 16.836 | C65: 17.426
A66: 2790.178571 | B66: 16.773 | C66: 17.34
A67: 2757.352941 | B67: 16.71 | C67: 17.254
A68: 2725.290698 | B68: 16.647 | C68: 17.168
A69: 2693.965517 | B69: 16.584 | C69: 17.082
A70: 2663.352273 | B70: 16.521 | C70: 16.996
A71: 2633.426966 | B71: 16.458 | C71: 16.91
A72: 2604.166667 | B72: 16.395 | C72: 16.824
A73: 2575.549451 | B73: 16.332 | C73: 16.738
A74: 2547.554348 | B74: 16.269 | C74: 16.652
A75: 2520.16129 | B75: 16.206 | C75: 16.566
A76: 2493.351064 | B76: 16.143 | C76: 16.48
A77: 2467.105263 | B77: 16.08 | C77: 16.394
A78: 2441.40625 | B78: 16.017 | C78: 16.308
A79: 2416.237113 | B79: 15.954 | C79: 16.222
A80: 2391.581633 | B80: 15.891 | C80: 16.136
A81: 2367.424242 | B81: 15.828 | C81: 16.05
A82: 2343.75 | B82: 15.765 | C82: 15.964
A83: 2320.544554 | B83: 15.702 | C83: 15.878
A84: 2297.794118 | B84: 15.639 | C84: 15.792
A85: 2275.485437 | B85: 15.576 | C85: 15.706
A86: 2253.605769 | B86: 15.513 | C86: 15.62
A87: 2232.142857 | B87: 15.45 | C87: 15.534
A88: 2211.084906 | B88: 15.387 | C88: 15.448
A89: 2190.420561 | B89: 15.324 | C89: 15.362
A90: 2170.138889 | B90: 15.261 | C90: 15.276
A91: 2150.229358 | B91: 15.198 | C91: 15.19
A92: 2130.681818 | B92: 15.135 | C92: 15.104
A93: 2111.486486 | B93: 15.072 | C93: 15.018
A94: 2092.633929 | B94: 15.009 | C94: 14.932
A95: 2074.115044 | B95: 14.946 | C95: 14.846
A96: 2055.921053 | B96: 14.883 | C96: 14.76
A97: 2038.043478 | B97: 14.82 | C97: 14.674
A98: 2020.474138 | B98: 14.757 | C98: 14.588
A99: 2003.205128 | B99: 14.694 | C99: 14.502
A100: 1986.228814 | B100: 14.631 | C100: 14.416
A101: 1969.537815 | B101: 14.568 | C101: 14.33
A102: 1953.125 | B102: 14.505 | C102: 14.244
A103: 1936.983471 | B103: 14.442 | C103: 14.158
A104: 1921.106557 | B104: 14.379 | C104: 14.072
A105: 1905.487805 | B105: 14.316 | C105: 13.986
A106: 1890.120968 | B106: 14.253 | C106: 13.9
A107: 1875 | B107: 14.19 | C107: 13.814
A108: 1860.119048 | B108: 14.127 | C108: 13.728
A109: 1845.472441 | B109: 14.064 | C109: 13.642
A110: 1831.054688 | B110: 14.001 | C110: 13.556
A111: 1816.860465 | B111: 13.938 | C111: 13.47
A112: 1802.884615 | B112: 13.875 | C112: 13.384
A113: 1789.122137 | B113: 13.812 | C113: 13.298
A114: 1775.568182 | B114: 13.749 | C114: 13.212
A115: 1762.218045 | B115: 13.686 | C115: 13.126
A116: 1749.067164 | B116: 13.623 | C116: 13.04
A117: 1736.111111 | B117: 13.56 | C117: 12.954
A118: 1723.345588 | B118: 13.497 | C118: 12.868
A119: 1710.766423 | B119: 13.434 | C119: 12.782
A120: 1698.369565 | B120: 13.371 | C120: 12.696
A121: 1686.151079 | B121: 13.308 | C121: 12.61
A122: 1674.107143 | B122: 13.245 | C122: 12.524
A123: 1662.234043 | B123: 13.182 | C123: 12.438
A124: 1650.528169 | B124: 13.119 | C124: 12.352
A125: 1638.986014 | B125: 13.056 | C125: 12.266
A126: 1627.604167 | B126: 12.993 | C126: 12.18
A127: 1616.37931 | B127: 12.93 | C127: 12.094
A128: 1605.308219 | B128: 12.867 | C128: 12.008
A129: 1594.387755 | B129: 12.804 | C129: 11.922
A130: 1583.614865 | B130: 12.741 | C130: 11.836
A131: 1572.986577 | B131: 12.678 | C131: 11.75
A132: 1562.5 | B132: 12.615 | C132: 11.664
A133: 1552.152318 | B133: 12.552 | C133: 11.578
A134: 1541.940789 | B134: 12.489 | C134: 11.492
A135: 1531.862745 | B135: 12.426 | C135: 11.406
A136: 1521.915584 | B136: 12.363 | C136: 11.32
A137: 1512.096774 | B137: 12.3 | C137: 11.234
A138: 1502.403846 | B138: 12.237 | C138: 11.148
A139: 1492.834395 | B139: 12.174 | C139: 11.062
A140: 1483.386076 | B140: 12.111 | C140: 10.976
A141: 1474.056604 | B141: 12.048 | C141: 10.89
A142: 1464.84375 | B142: 11.985 | C142: 10.804
A143: 1455.745342 | B143: 11.922 | C143: 10.718
A144: 1446.759259 | B144: 11.859 | C144: 10.632
A145: 1437.883436 | B145: 11.796 | C145: 10.546
A146: 1429.115854 | B146: 11.733 | C146: 10.46
A147: 1420.454545 | B147: 11.67 | C147: 10.374
A148: 1411.89759 | B148: 11.607 | C148: 10.288
A149: 1403.443114 | B149: 11.544 | C149: 10.202
A150: 1395.089286 | B150: 11.481 | C150: 10.116
A151: 1386.83432 | B151: 11.418 | C151: 10.03
A152: 1378.676471 | B152: 11.355 | C152: 9.944
A153: 1370.614035 | B153: 11.292 | C153: 9.858
A154: 1362.645349 | B154: 11.229 | C154: 9.772
A155: 1354.768786 | B155: 11.166 | C155: 9.686
A156: 1346.982759 | B156: 11.103 | C156: 9.6
A157: 1339.285714 | B157: 11.04 | C157: 9.54
A158: 1331.676136 | B158: 10.977 | C158: 9.48
A159: 1324.152542 | B159: 10.914 | C159: 9.42
A160: 1316.713483 | B160: 10.851 | C160: 9.36
A161: 1309.357542 | B161: 10.788 | C161: 9.3
A162: 1302.083333 | B162: 10.725 | C162: 9.24
A163: 1294.889503 | B163: 10.662 | C163: 9.18
A164: 1287.774725 | B164: 10.599 | C164: 9.12
A165: 1280.737705 | B165: 10.536 | C165: 9.06
A166: 1273.777174 | B166: 10.473 | C166: 9
A167: 1266.891892 | B167: 10.41 | C167: 8.94
A168: 1260.080645 | B168: 10.347 | C168: 8.88
A169: 1253.342246 | B169: 10.284 | C169: 8.82
A170: 1246.675532 | B170: 10.221 | C170: 8.76
A171: 1240.079365 | B171: 10.158 | C171: 8.7
A172: 1233.552632 | B172: 10.095 | C172: 8.64
A173: 1227.094241 | B173: 10.032 | C173: 8.58
A174: 1220.703125 | B174: 9.969 | C174: 8.52
A175: 1214.378238 | B175: 9.906 | C175: 8.46
A176: 1208.118557 | B176: 9.843 | C176: 8.4
A177: 1201.923077 | B177: 9.78 | C177: 8.34
A178: 1195.790816 | B178: 9.717 | C178: 8.28
A179: 1189.720812 | B179: 9.654 | C179: 8.22
A180: 1183.712121 | B180: 9.591 | C180: 8.16
A181: 1177.763819 | B181: 9.528 | C181: 8.1
A182: 1171.875 | B182: 9.465 | C182: 8.04
A183: 1166.044776 | B183: 9.402 | C183: 7.98
A184: 1160.272277 | B184: 9.339 | C184: 7.92
A185: 1154.55665 | B185: 9.276 | C185: 7.86
A186: 1148.897059 | B186: 9.213 | C186: 7.8
A187: 1143.292683 | B187: 9.15 | C187: 7.74
A188: 1137.742718 | B188: 9.087 | C188: 7.68
A189: 1132.246377 | B189: 9.024 | C189: 7.62
A190: 1126.802885 | B190: 8.961 | C190: 7.56
A191: 1121.411483 | B191: 8.898 | C191: 7.5
A192: 1116.071429 | B192: 8.835 | C192: 7.44
A193: 1110.781991 | B193: 8.772 | C193: 7.38
A194: 1105.542453 | B194: 8.709 | C194: 7.32
A195: 1100.352113 | B195: 8.646 | C195: 7.26
A196: 1095.21028 | B196: 8.583 | C196: 7.2
A197: 1090.116279 | B197: 8.52 | C197: 7.14
A198: 1085.069444 | B198: 8.457 | C198: 7.08
A199: 1080.069124 | B199: 8.394 | C199: 7.02
A200: 1075.114679 | B200: 8.331 | C200: 6.96
... 37 more rows
